[Event "*** Titled Tuesday Blitz"]
[Site "Chess.com"]
[Date "2019.10.01"]
[Round "8"]
[White "Qvalda"]
[Black "przemekpiotrowski"]
[Result "0-1"]
[WhiteElo "2516"]
[BlackElo "2433"]
[TimeControl "180+2"]
[EndTime "14:58:43 PDT"]
[Termination "przemekpiotrowski won on time"]

1. d4 {[%clk 0:03:01]} 1... Nf6 {[%clk 0:01:27.1]} 2. c4 {[%clk 0:03:00.9]} 2...
g6 {[%clk 0:01:28.4]} 3. g3 {[%clk 0:03:02]} 3... Bg7 {[%clk 0:01:30.3]} 4. Bg2
{[%clk 0:03:03.6]} 4... O-O {[%clk 0:01:31.8]} 5. Nc3 {[%clk 0:03:04.8]} 5... d6
{[%clk 0:01:33.5]} 6. e3 {[%clk 0:03:06.4]} 6... c5 {[%clk 0:01:35]} 7. Nge2
{[%clk 0:03:03.8]} 7... Nc6 {[%clk 0:01:36.2]} 8. O-O {[%clk 0:02:59.4]} 8...
Bf5 {[%clk 0:01:36.8]} 9. dxc5 {[%clk 0:02:44.2]} 9... dxc5 {[%clk 0:01:36.2]}
10. Bxc6 {[%clk 0:02:45.8]} 10... bxc6 {[%clk 0:01:37.2]} 11. Qxd8 {[%clk
0:02:47.4]} 11... Rfxd8 {[%clk 0:01:38.4]} 12. f3 {[%clk 0:01:59]} 12... Bd3
{[%clk 0:01:35.5]} 13. e4 {[%clk 0:01:41.8]} 13... Bxc4 {[%clk 0:01:33.8]} 14.
Be3 {[%clk 0:01:39.5]} 14... Nd7 {[%clk 0:01:25.8]} 15. Rfd1 {[%clk 0:01:35.8]}
15... Ne5 {[%clk 0:01:10.4]} 16. Kg2 {[%clk 0:01:30]} 16... Bxe2 {[%clk
0:00:59.1]} 17. Nxe2 {[%clk 0:01:27.9]} 17... Nd3 {[%clk 0:00:56.6]} 18. Rab1
{[%clk 0:01:16.1]} 18... Nxb2 {[%clk 0:00:52.6]} 19. Rxd8+ {[%clk 0:01:15.3]}
19... Rxd8 {[%clk 0:00:52.8]} 20. Bxc5 {[%clk 0:01:15.7]} 20... Rd2 {[%clk
0:00:51.2]} 21. Kf1 {[%clk 0:01:16.6]} 21... e6 {[%clk 0:00:44.9]} 22. Bxa7
{[%clk 0:01:02.7]} 22... h5 {[%clk 0:00:35.5]} 23. f4 {[%clk 0:00:43.7]} 23...
e5 {[%clk 0:00:23.2]} 24. Be3 {[%clk 0:00:34]} 24... Rc2 {[%clk 0:00:22]} 25. f5
{[%clk 0:00:29]} 25... gxf5 {[%clk 0:00:22.5]} 26. exf5 {[%clk 0:00:29.8]} 26...
Nc4 {[%clk 0:00:18.3]} 27. Rb8+ {[%clk 0:00:26.6]} 27... Kh7 {[%clk 0:00:18.3]}
28. Bg5 {[%clk 0:00:20.5]} 28... f6 {[%clk 0:00:19.1]} 29. Bh4 {[%clk
0:00:21.1]} 29... Rxa2 {[%clk 0:00:20.2]} 30. Rb7 {[%clk 0:00:21.5]} 30... Kh6
{[%clk 0:00:17.1]} 31. Nc3 {[%clk 0:00:19.4]} 31... Rc2 {[%clk 0:00:16.8]} 32.
Ne4 {[%clk 0:00:15.6]} 32... Ne3+ {[%clk 0:00:18.3]} 33. Kg1 {[%clk 0:00:15.3]}
33... Rg2+ {[%clk 0:00:17]} 34. Kh1 {[%clk 0:00:16.6]} 34... Re2 {[%clk
0:00:18.1]} 35. h3 {[%clk 0:00:16.8]} 35... Nxf5 {[%clk 0:00:18.2]} 36. Nc5
{[%clk 0:00:02.7]} 36... Nd4 {[%clk 0:00:17.8]} 37. Nd7 {[%clk 0:00:03.4]} 37...
Nf3 {[%clk 0:00:18.6]} 38. Bg5+ {[%clk 0:00:02.9]} 38... fxg5 {[%clk 0:00:18.3]}
39. Rb2 {[%clk 0:00:02]} 39... Rxb2 {[%clk 0:00:19.2]} 0-1

[Event "*** Titled Tuesday Blitz"]
[Site "Chess.com"]
[Date "2019.10.01"]
[Round "8"]
[White "KhazarBabazada"]
[Black "VladDobrov"]
[Result "0-1"]
[WhiteElo "2845"]
[BlackElo "2958"]
[TimeControl "180+2"]
[EndTime "14:58:45 PDT"]
[Termination "VladDobrov won by checkmate"]

1. e4 {[%clk 0:03:01.9]} 1... c5 {[%clk 0:03:01.1]} 2. Nf3 {[%clk 0:03:00.1]}
2... Nc6 {[%clk 0:03:02.5]} 3. d4 {[%clk 0:02:51.6]} 3... cxd4 {[%clk
0:03:04.4]} 4. Nxd4 {[%clk 0:02:51.3]} 4... Qb6 {[%clk 0:03:05.7]} 5. Nb3 {[%clk
0:02:51.7]} 5... Nf6 {[%clk 0:03:06.7]} 6. Nc3 {[%clk 0:02:50.8]} 6... e6 {[%clk
0:03:08.2]} 7. Be3 {[%clk 0:02:51.3]} 7... Qc7 {[%clk 0:03:09.5]} 8. g4 {[%clk
0:02:46.2]} 8... Bb4 {[%clk 0:03:09.7]} 9. f3 {[%clk 0:02:36.7]} 9... d5 {[%clk
0:03:04.1]} 10. g5 {[%clk 0:02:37.7]} 10... Nh5 {[%clk 0:03:04.8]} 11. exd5
{[%clk 0:02:36.1]} 11... exd5 {[%clk 0:03:06.2]} 12. a3 {[%clk 0:02:32.8]} 12...
Bxc3+ {[%clk 0:03:06.8]} 13. bxc3 {[%clk 0:02:34.4]} 13... O-O {[%clk
0:03:08.5]} 14. Qd2 {[%clk 0:02:33.5]} 14... Re8 {[%clk 0:03:10]} 15. O-O-O
{[%clk 0:02:34.5]} 15... Ne5 {[%clk 0:03:09]} 16. Be2 {[%clk 0:02:32.1]} 16...
Bf5 {[%clk 0:02:51.4]} 17. Rhe1 {[%clk 0:02:31.2]} 17... Rac8 {[%clk 0:02:51.2]}
18. Kb2 {[%clk 0:02:30]} 18... Re6 {[%clk 0:02:04.9]} 19. f4 {[%clk 0:02:17.1]}
19... Nc4+ {[%clk 0:02:03]} 20. Bxc4 {[%clk 0:02:18.1]} 20... dxc4 {[%clk
0:02:04.9]} 21. Nd4 {[%clk 0:02:16.6]} 21... Rb6+ {[%clk 0:02:05.9]} 22. Ka2
{[%clk 0:02:17.9]} 22... Bg4 {[%clk 0:02:06]} 23. Rb1 {[%clk 0:02:18.6]} 23...
Rxb1 {[%clk 0:02:04.8]} 24. Rxb1 {[%clk 0:02:19.4]} 24... b6 {[%clk 0:02:06.2]}
25. Qg2 {[%clk 0:02:19.7]} 25... Qd7 {[%clk 0:02:06]} 26. Re1 {[%clk 0:02:10.2]}
26... g6 {[%clk 0:02:05]} 27. Bc1 {[%clk 0:02:08.4]} 27... Ng7 {[%clk
0:02:05.2]} 28. a4 {[%clk 0:02:02.6]} 28... Qxa4+ {[%clk 0:02:03.4]} 29. Ba3
{[%clk 0:02:01.1]} 29... Be6 {[%clk 0:02:04.7]} 30. Qb7 {[%clk 0:01:57.4]} 30...
Re8 {[%clk 0:02:01.9]} 31. Kb2 {[%clk 0:01:55.1]} 31... Qd7 {[%clk 0:01:56.8]}
32. Qa6 {[%clk 0:01:16.3]} 32... Qc7 {[%clk 0:01:43.4]} 33. Nb5 {[%clk
0:01:03.1]} 33... Qxf4 {[%clk 0:01:43.8]} 34. Qxa7 {[%clk 0:01:04.1]} 34... Qxg5
{[%clk 0:01:43.2]} 35. Nd6 {[%clk 0:01:03.2]} 35... Qe7 {[%clk 0:01:24.7]} 36.
Qxb6 {[%clk 0:00:30.5]} 36... Ra8 {[%clk 0:01:23.3]} 37. Bb4 {[%clk 0:00:31.4]}
37... Qd7 {[%clk 0:01:24.1]} 38. Ne4 {[%clk 0:00:31]} 38... Qa4 {[%clk
0:01:16.8]} 39. Nf6+ {[%clk 0:00:32.2]} 39... Kh8 {[%clk 0:01:17.7]} 40. Rd1
{[%clk 0:00:26]} 40... Bf5 {[%clk 0:00:25.6]} 41. Rd8+ {[%clk 0:00:23.6]} 41...
Ne8 {[%clk 0:00:26.5]} 42. Ne4 {[%clk 0:00:04.7]} 42... Qa1# {[%clk 0:00:26.8]}
0-1

[Event "*** Titled Tuesday Blitz"]
[Site "Chess.com"]
[Date "2019.10.01"]
[Round "8"]
[White "Tonychess32"]
[Black "dmosesov"]
[Result "0-1"]
[WhiteElo "2406"]
[BlackElo "2541"]
[TimeControl "180+2"]
[EndTime "14:58:47 PDT"]
[Termination "dmosesov won by resignation"]

1. e4 {[%clk 0:03:01.9]} 1... c5 {[%clk 0:03:00.5]} 2. Nf3 {[%clk 0:03:02.3]}
2... Nc6 {[%clk 0:03:01.4]} 3. Bc4 {[%clk 0:03:03.6]} 3... e6 {[%clk 0:02:58.5]}
4. d3 {[%clk 0:03:05]} 4... Nf6 {[%clk 0:02:55.9]} 5. O-O {[%clk 0:03:05.4]}
5... d5 {[%clk 0:02:54.1]} 6. exd5 {[%clk 0:03:06.5]} 6... exd5 {[%clk 0:02:56]}
7. Bb5 {[%clk 0:03:08.2]} 7... Be7 {[%clk 0:02:55.2]} 8. d4 {[%clk 0:02:54.5]}
8... O-O {[%clk 0:02:52.8]} 9. dxc5 {[%clk 0:02:53.8]} 9... Bxc5 {[%clk
0:02:54.7]} 10. Nbd2 {[%clk 0:02:54.7]} 10... Bg4 {[%clk 0:02:48.6]} 11. h3
{[%clk 0:02:55.6]} 11... Bh5 {[%clk 0:02:49]} 12. Nb3 {[%clk 0:02:56.8]} 12...
Bb6 {[%clk 0:02:49.3]} 13. c3 {[%clk 0:02:58.1]} 13... Ne4 {[%clk 0:02:37.4]}
14. Be2 {[%clk 0:02:41]} 14... Ng3 {[%clk 0:02:28]} 15. Re1 {[%clk 0:02:42.4]}
15... Nxe2+ {[%clk 0:02:18.2]} 16. Qxe2 {[%clk 0:02:44]} 16... Re8 {[%clk
0:02:17.6]} 17. Qxe8+ {[%clk 0:02:38.7]} 17... Qxe8 {[%clk 0:02:19.5]} 18. Rxe8+
{[%clk 0:02:39.6]} 18... Rxe8 {[%clk 0:02:21.4]} 19. g4 {[%clk 0:01:45.1]} 19...
Bg6 {[%clk 0:02:17.7]} 20. Nbd4 {[%clk 0:01:26.4]} 20... Nxd4 {[%clk 0:02:08.6]}
21. Nxd4 {[%clk 0:01:27.6]} 21... Re1+ {[%clk 0:02:03.4]} 22. Kg2 {[%clk
0:01:24.9]} 22... h5 {[%clk 0:01:48.5]} 23. f3 {[%clk 0:01:18.3]} 23... hxg4
{[%clk 0:01:49]} 24. hxg4 {[%clk 0:01:19.5]} 24... Rd1 {[%clk 0:01:43.9]} 25.
Kf2 {[%clk 0:01:10.7]} 25... Bd3 {[%clk 0:01:28.6]} 26. b3 {[%clk 0:01:09.3]}
26... Ba6 {[%clk 0:01:26.3]} 27. Kg3 {[%clk 0:00:51.5]} 27... Bc7+ {[%clk
0:01:01.6]} 28. Kf2 {[%clk 0:00:52.7]} 28... Be5 {[%clk 0:00:49.2]} 29. a4
{[%clk 0:00:33.9]} 29... Rxd4 {[%clk 0:00:45.4]} 30. f4 {[%clk 0:00:25.4]} 30...
Rxf4+ {[%clk 0:00:37.3]} 31. Bxf4 {[%clk 0:00:26.3]} 31... Bxf4 {[%clk
0:00:39.2]} 32. Kf3 {[%clk 0:00:28]} 32... Be5 {[%clk 0:00:39.9]} 33. Rc1 {[%clk
0:00:26.4]} 33... Bd3 {[%clk 0:00:40.3]} 34. Ke3 {[%clk 0:00:23.5]} 34... Be4
{[%clk 0:00:31.5]} 35. c4 {[%clk 0:00:24.5]} 35... b6 {[%clk 0:00:33.1]} 36. Rd1
{[%clk 0:00:23.2]} 36... Bd6 {[%clk 0:00:21.8]} 37. cxd5 {[%clk 0:00:22.2]}
37... Bc2 {[%clk 0:00:19.4]} 38. Rc1 {[%clk 0:00:20.5]} 38... Bc5+ {[%clk
0:00:19.3]} 39. Kf4 {[%clk 0:00:20.4]} 39... Bxb3 {[%clk 0:00:20.9]} 40. Ke5
{[%clk 0:00:19.7]} 40... Kf8 {[%clk 0:00:22]} 41. Rh1 {[%clk 0:00:17.7]} 41...
Ke7 {[%clk 0:00:20.6]} 42. Rh7 {[%clk 0:00:16.7]} 42... f6+ {[%clk 0:00:21.2]}
43. Kf5 {[%clk 0:00:16.6]} 43... Bc2+ {[%clk 0:00:21.9]} 0-1

[Event "*** Titled Tuesday Blitz"]
[Site "Chess.com"]
[Date "2019.10.01"]
[Round "8"]
[White "Samantha_Ross"]
[Black "Playgood28"]
[Result "1-0"]
[WhiteElo "2081"]
[BlackElo "2273"]
[TimeControl "180+2"]
[EndTime "14:58:52 PDT"]
[Termination "Samantha_Ross won by resignation"]

1. e3 {[%clk 0:02:53.1]} 1... e5 {[%clk 0:02:59.1]} 2. c4 {[%clk 0:02:53.7]}
2... f5 {[%clk 0:02:52.7]} 3. d4 {[%clk 0:02:48.3]} 3... e4 {[%clk 0:02:53.2]}
4. Nc3 {[%clk 0:02:48.2]} 4... Nf6 {[%clk 0:02:54.3]} 5. Nge2 {[%clk 0:02:45.5]}
5... g6 {[%clk 0:02:54.3]} 6. Nf4 {[%clk 0:02:43.7]} 6... Bg7 {[%clk 0:02:55.6]}
7. Be2 {[%clk 0:02:41.9]} 7... O-O {[%clk 0:02:56.4]} 8. O-O {[%clk 0:02:43.5]}
8... d6 {[%clk 0:02:57.3]} 9. b4 {[%clk 0:02:43.1]} 9... a5 {[%clk 0:02:58.2]}
10. b5 {[%clk 0:02:35.8]} 10... c6 {[%clk 0:02:57.7]} 11. a4 {[%clk 0:02:36.7]}
11... g5 {[%clk 0:02:48.6]} 12. Nh5 {[%clk 0:02:33.3]} 12... Nxh5 {[%clk
0:02:49.4]} 13. Bxh5 {[%clk 0:02:35.2]} 13... Nd7 {[%clk 0:02:49.7]} 14. Be2
{[%clk 0:02:35.2]} 14... Nf6 {[%clk 0:02:46.6]} 15. Ba3 {[%clk 0:02:31.3]} 15...
Be6 {[%clk 0:02:31.6]} 16. Rb1 {[%clk 0:02:25.5]} 16... Qc7 {[%clk 0:02:20]} 17.
d5 {[%clk 0:02:10.3]} 17... cxd5 {[%clk 0:02:10.8]} 18. Nxd5 {[%clk 0:02:10.1]}
18... Bxd5 {[%clk 0:01:59.5]} 19. cxd5 {[%clk 0:02:12]} 19... Nd7 {[%clk
0:01:58.5]} 20. Rc1 {[%clk 0:02:10.3]} 20... Nc5 {[%clk 0:01:55.7]} 21. Bxc5
{[%clk 0:01:57.3]} 21... dxc5 {[%clk 0:01:55.7]} 22. d6 {[%clk 0:01:59.2]} 22...
Qb6 {[%clk 0:01:53.7]} 23. Qd5+ {[%clk 0:02:00]} 23... Kh8 {[%clk 0:01:51.2]}
24. Rxc5 {[%clk 0:01:51.4]} 24... Rad8 {[%clk 0:01:46.1]} 25. Rd1 {[%clk
0:01:35.5]} 25... Rd7 {[%clk 0:01:39.1]} 26. h3 {[%clk 0:01:09.5]} 26... Qd8
{[%clk 0:01:03.4]} 27. b6 {[%clk 0:00:47.4]} 27... Rf6 {[%clk 0:01:00.5]} 28.
Rc7 {[%clk 0:00:34.9]} 28... Rdxd6 {[%clk 0:00:52]} 29. Qxb7 {[%clk 0:00:10.9]}
29... Rxd1+ {[%clk 0:00:51.6]} 30. Bxd1 {[%clk 0:00:12.8]} 30... Qxd1+ {[%clk
0:00:48.3]} 31. Kh2 {[%clk 0:00:14.4]} 31... Qd6+ {[%clk 0:00:48.4]} 32. g3
{[%clk 0:00:15.9]} 32... Rg6 {[%clk 0:00:28.9]} 33. Re7 {[%clk 0:00:07.9]} 33...
f4 {[%clk 0:00:28]} 34. Re8+ {[%clk 0:00:06.6]} 34... Bf8 {[%clk 0:00:28.4]} 35.
Qf7 {[%clk 0:00:06.3]} 35... fxg3+ {[%clk 0:00:26.7]} 36. Kg2 {[%clk 0:00:07.9]}
36... Rg8 {[%clk 0:00:25.6]} 37. b7 {[%clk 0:00:09.3]} 37... Qd1 {[%clk
0:00:18.1]} 38. b8=Q {[%clk 0:00:08.8]} 38... Qf3+ {[%clk 0:00:17.9]} 39. Qxf3
{[%clk 0:00:08.8]} 39... exf3+ {[%clk 0:00:19.3]} 40. Kxf3 {[%clk 0:00:10.7]}
40... gxf2 {[%clk 0:00:20.1]} 41. Kxf2 {[%clk 0:00:09.6]} 41... g4 {[%clk
0:00:21.4]} 42. Rxf8 {[%clk 0:00:10.1]} 1-0

[Event "*** Titled Tuesday Blitz"]
[Site "Chess.com"]
[Date "2019.10.01"]
[Round "8"]
[White "dlp300"]
[Black "r31415"]
[Result "1-0"]
[WhiteElo "2500"]
[BlackElo "2394"]
[TimeControl "180+2"]
[EndTime "14:58:56 PDT"]
[Termination "dlp300 won by checkmate"]

1. Nf3 {[%clk 0:03:01.7]} 1... Nf6 {[%clk 0:02:58.7]} 2. g3 {[%clk 0:02:28.3]}
2... b6 {[%clk 0:02:59.2]} 3. Bg2 {[%clk 0:02:29.5]} 3... Bb7 {[%clk 0:03:00.7]}
4. O-O {[%clk 0:02:30.9]} 4... c5 {[%clk 0:03:02.2]} 5. d3 {[%clk 0:02:32.3]}
5... e6 {[%clk 0:03:03.7]} 6. Nbd2 {[%clk 0:02:33.7]} 6... Be7 {[%clk
0:03:04.9]} 7. e4 {[%clk 0:02:35.2]} 7... d6 {[%clk 0:03:05.4]} 8. a4 {[%clk
0:02:33.6]} 8... a6 {[%clk 0:03:05.7]} 9. b3 {[%clk 0:02:31.7]} 9... Nbd7 {[%clk
0:03:06.8]} 10. Bb2 {[%clk 0:02:33]} 10... O-O {[%clk 0:03:08.1]} 11. Re1 {[%clk
0:02:33.9]} 11... Qc7 {[%clk 0:03:09.6]} 12. h3 {[%clk 0:02:23.4]} 12... Rac8
{[%clk 0:03:04.5]} 13. c4 {[%clk 0:02:21.6]} 13... Rfd8 {[%clk 0:03:05.3]} 14.
Qe2 {[%clk 0:02:22]} 14... Bc6 {[%clk 0:03:05.4]} 15. Nh2 {[%clk 0:02:18.9]}
15... Qb7 {[%clk 0:03:06.2]} 16. f4 {[%clk 0:02:19.1]} 16... b5 {[%clk
0:03:05.9]} 17. axb5 {[%clk 0:02:08.6]} 17... axb5 {[%clk 0:03:06.7]} 18. Bc3
{[%clk 0:02:10.1]} 18... Bf8 {[%clk 0:02:55.7]} 19. g4 {[%clk 0:02:11.7]} 19...
d5 {[%clk 0:02:51.1]} 20. g5 {[%clk 0:01:59.2]} 20... Ne8 {[%clk 0:02:51.5]} 21.
Ng4 {[%clk 0:02:00.2]} 21... d4 {[%clk 0:02:41.9]} 22. Bb2 {[%clk 0:01:59.6]}
22... Ra8 {[%clk 0:02:41.8]} 23. Rab1 {[%clk 0:01:54.6]} 23... Ra2 {[%clk
0:02:41.3]} 24. Bc1 {[%clk 0:01:38.7]} 24... Rda8 {[%clk 0:02:35]} 25. Qf2
{[%clk 0:01:35.5]} 25... Nc7 {[%clk 0:02:31.2]} 26. Qg3 {[%clk 0:01:36.1]} 26...
Na6 {[%clk 0:02:31]} 27. Nf3 {[%clk 0:01:17.1]} 27... Nb4 {[%clk 0:02:29.8]} 28.
Nfe5 {[%clk 0:01:18]} 28... Nxe5 {[%clk 0:02:23.2]} 29. fxe5 {[%clk 0:01:19.9]}
29... Rc2 {[%clk 0:02:17.7]} 30. Rb2 {[%clk 0:01:12.5]} 30... Rc3 {[%clk
0:02:18.8]} 31. Bf1 {[%clk 0:01:11.2]} 31... Bxe4 {[%clk 0:01:42]} 32. Bg2
{[%clk 0:00:30.3]} 32... Bxg2 {[%clk 0:01:36.9]} 33. Rxg2 {[%clk 0:00:30.9]}
33... Nxd3 {[%clk 0:01:36.7]} 34. Nf6+ {[%clk 0:00:30.2]} 34... Kh8 {[%clk
0:01:37.4]} 35. Qh4 {[%clk 0:00:26.9]} 35... h6 {[%clk 0:01:27.4]} 36. gxh6
{[%clk 0:00:23.6]} 36... g6 {[%clk 0:01:27.9]} 37. Ne4 {[%clk 0:00:12.9]} 37...
Be7 {[%clk 0:01:13.6]} 38. Bg5 {[%clk 0:00:14.1]} 38... f5 {[%clk 0:00:16.8]}
39. Bf6+ {[%clk 0:00:11.8]} 39... Kh7 {[%clk 0:00:08.9]} 40. Ng5+ {[%clk
0:00:12.6]} 40... Kg8 {[%clk 0:00:10]} 41. h7+ {[%clk 0:00:13.8]} 41... Kf8
{[%clk 0:00:11.9]} 42. h8=Q# {[%clk 0:00:15.3]} 1-0

[Event "*** Titled Tuesday Blitz"]
[Site "Chess.com"]
[Date "2019.10.01"]
[Round "8"]
[White "Jospem"]
[Black "Parhamov"]
[Result "0-1"]
[WhiteElo "2889"]
[BlackElo "3039"]
[TimeControl "180+2"]
[EndTime "14:59:00 PDT"]
[Termination "Parhamov won by resignation"]

1. c4 {[%clk 0:03:01.9]} 1... Nf6 {[%clk 0:02:58.4]} 2. Nf3 {[%clk 0:03:03.1]}
2... g6 {[%clk 0:02:59.1]} 3. g3 {[%clk 0:03:04.7]} 3... Bg7 {[%clk 0:03:00]} 4.
Bg2 {[%clk 0:03:06.4]} 4... O-O {[%clk 0:03:01.6]} 5. O-O {[%clk 0:03:08.1]}
5... d5 {[%clk 0:03:01.7]} 6. cxd5 {[%clk 0:03:08.9]} 6... Nxd5 {[%clk
0:03:03.6]} 7. d4 {[%clk 0:03:09.9]} 7... Nb6 {[%clk 0:03:04.7]} 8. Nc3 {[%clk
0:03:10.7]} 8... Nc6 {[%clk 0:03:04.6]} 9. e3 {[%clk 0:03:11.9]} 9... Re8 {[%clk
0:03:03.3]} 10. Nh4 {[%clk 0:03:13]} 10... a5 {[%clk 0:02:49.8]} 11. f4 {[%clk
0:03:10.8]} 11... a4 {[%clk 0:02:51]} 12. Qe2 {[%clk 0:03:06.1]} 12... Be6
{[%clk 0:02:49]} 13. Rd1 {[%clk 0:03:01.2]} 13... Bc4 {[%clk 0:02:49.4]} 14. Qf2
{[%clk 0:03:01.9]} 14... e6 {[%clk 0:02:46]} 15. Nf3 {[%clk 0:02:59.3]} 15...
Nd5 {[%clk 0:02:36.5]} 16. Nd2 {[%clk 0:02:43.4]} 16... Ba6 {[%clk 0:02:30.4]}
17. Nde4 {[%clk 0:02:34.7]} 17... b6 {[%clk 0:02:29.4]} 18. Bd2 {[%clk
0:02:13.8]} 18... Bc4 {[%clk 0:02:24.1]} 19. a3 {[%clk 0:02:02.7]} 19... Na5
{[%clk 0:02:21.8]} 20. Nxd5 {[%clk 0:01:49.2]} 20... exd5 {[%clk 0:02:21.7]} 21.
Bxa5 {[%clk 0:01:50.3]} 21... dxe4 {[%clk 0:02:21.3]} 22. Bb4 {[%clk 0:01:44]}
22... Qd5 {[%clk 0:02:22.3]} 23. Rac1 {[%clk 0:01:43.4]} 23... f5 {[%clk
0:02:21.2]} 24. Bf1 {[%clk 0:01:23.5]} 24... Bxf1 {[%clk 0:02:21.7]} 25. Qxf1
{[%clk 0:01:25.4]} 25... c6 {[%clk 0:02:21.6]} 26. Qc4 {[%clk 0:01:26.1]} 26...
Rec8 {[%clk 0:02:12.5]} 27. Rd2 {[%clk 0:01:19.4]} 27... Qxc4 {[%clk 0:02:05.1]}
28. Rxc4 {[%clk 0:01:19.9]} 28... Kf7 {[%clk 0:02:06.7]} 29. Rd1 {[%clk
0:01:01.2]} 29... Ke6 {[%clk 0:02:05.1]} 30. Rc2 {[%clk 0:00:51.7]} 30... Kd5
{[%clk 0:02:02.1]} 31. h3 {[%clk 0:00:53]} 31... h5 {[%clk 0:02:02.7]} 32. h4
{[%clk 0:00:52.5]} 32... Rc7 {[%clk 0:01:57.1]} 33. Kf1 {[%clk 0:00:52.9]} 33...
Rac8 {[%clk 0:01:56.4]} 34. Ke2 {[%clk 0:00:53.8]} 34... Rd7 {[%clk 0:01:52.8]}
35. Rdd2 {[%clk 0:00:53.6]} 35... Bf6 {[%clk 0:01:53]} 36. Kd1 {[%clk
0:00:53.9]} 36... Ke6 {[%clk 0:01:50.1]} 37. Kc1 {[%clk 0:00:53.2]} 37... Rdc7
{[%clk 0:01:51.4]} 38. Kb1 {[%clk 0:00:53.1]} 38... c5 {[%clk 0:01:50.2]} 39.
dxc5 {[%clk 0:00:51.8]} 39... bxc5 {[%clk 0:01:52.1]} 40. Bc3 {[%clk 0:00:44.9]}
40... Be7 {[%clk 0:01:52.8]} 41. Be5 {[%clk 0:00:40.1]} 41... Rb7 {[%clk
0:01:53.3]} 42. Rc4 {[%clk 0:00:40.1]} 42... Ra8 {[%clk 0:01:54.2]} 43. Ka2
{[%clk 0:00:40.6]} 43... Rd7 {[%clk 0:01:48.2]} 44. Rxd7 {[%clk 0:00:26]} 44...
Kxd7 {[%clk 0:01:50.1]} 45. b3 {[%clk 0:00:27.7]} 45... axb3+ {[%clk 0:01:46.8]}
46. Kxb3 {[%clk 0:00:29.6]} 46... Kc6 {[%clk 0:01:48.5]} 47. a4 {[%clk
0:00:27.8]} 47... Kd5 {[%clk 0:01:46.6]} 48. Rc2 {[%clk 0:00:25.7]} 48... Ra7
{[%clk 0:01:47.8]} 49. Rd2+ {[%clk 0:00:26.6]} 49... Kc6 {[%clk 0:01:48.4]} 50.
Bc3 {[%clk 0:00:26.8]} 50... c4+ {[%clk 0:01:47.3]} 51. Kxc4 {[%clk 0:00:26.9]}
51... Rxa4+ {[%clk 0:01:49.2]} 52. Kb3 {[%clk 0:00:27.7]} 52... Ra3+ {[%clk
0:01:41.6]} 53. Kc4 {[%clk 0:00:26.6]} 53... Ra8 {[%clk 0:01:26.4]} 54. Rc2
{[%clk 0:00:22.6]} 54... Ra4+ {[%clk 0:01:24.7]} 55. Kb3 {[%clk 0:00:21.3]}
55... Kb5 {[%clk 0:01:26.6]} 56. Rd2 {[%clk 0:00:17.4]} 56... Ra3+ {[%clk
0:01:24.8]} 57. Kb2 {[%clk 0:00:18.6]} 57... Rxc3 {[%clk 0:01:17.3]} 58. Rd7
{[%clk 0:00:16.3]} 58... Rxe3 {[%clk 0:01:14.5]} 59. Rxe7 {[%clk 0:00:16.9]}
59... Rxg3 {[%clk 0:01:16.1]} 0-1